bitfinex/quotes_ETHUSD_20230102
["timestamp","ask_amount","ask_price","bid_price","bid_amount"]
[1672674864265,18.2689614,1220.6,1220.5,2.86485416]
[1672674864616,13.19269,1220.6,1220.5,2.86485416]
[1672674865684,21.38538,1220.6,1220.5,2.86485416]
[1672674865889,5.0,1220.6,1220.5,2.86485416]
[1672674866318,13.19269,1220.6,1220.5,2.86485416]
[1672674868433,5.0,1220.6,1220.5,2.86485416]
[1672674869802,5.0,1220.6,1220.5,2.86220404]
[1672674870439,13.19269,1220.6,1220.5,2.86220404]
[1672674870747,17.34155114,1220.6,1220.5,2.86220404]
[1672674870907,41.97183079,1220.6,1220.5,2.86220404]
[1672674871758,22.41782254,1220.6,1220.5,2.86220404]
[1672674875142,14.22513254,1220.6,1220.5,2.86220404]
[1672674879950,22.41782254,1220.6,1220.5,2.86220404]
[1672674880170,30.61051254,1220.6,1220.5,2.86220404]
[1672674881783,25.61051254,1220.6,1220.5,2.86220404]
[1672674881996,25.61137336,1220.6,1220.5,2.86220404]
[1672674882208,30.61137336,1220.6,1220.5,2.86220404]
[1672674883569,38.80406336,1220.6,1220.5,2.86220404]
[1672674885840,33.72693114,1220.6,1220.5,2.86220404]
[1672674886043,39.81967452,1220.6,1220.5,2.86220404]
[1672674888205,6.09274338,1220.6,1220.5,2.86220404]
[1672674888865,14.28543338,1220.6,1220.5,2.86220404]
[1672674889202,19.28543338,1220.6,1220.5,2.86220404]
[1672674891656,11.09274338,1220.6,1220.5,2.86220404]
[1672674892053,19.28543338,1220.6,1220.5,2.86220404]
[1672674892185,13.19269,1220.6,1220.5,2.85968356]
[1672674892659,11.09274338,1220.6,1220.5,2.85968356]
[1672674893373,5.0,1220.6,1220.5,2.85968356]
[1672674894180,13.19269,1220.6,1220.5,2.85968356]
[1672674894392,5.0,1220.6,1220.5,2.85968356]
[1672674894642,11.09274338,1220.6,1220.5,2.85968356]
[1672674896447,5.0,1220.6,1220.5,2.85968356]
[1672674896617,10.08593381,1220.6,1220.5,2.85968356]
[1672674897483,5.0,1220.6,1220.5,2.85968356]
[1672674897867,11.09274338,1220.6,1220.5,2.85968356]
[1672674899816,5.0,1220.6,1220.5,2.85968356]
[1672674900176,11.09274338,1220.6,1220.5,2.85968356]
[1672674907458,6.09274338,1220.6,1220.5,2.85968356]
[1672674908466,11.09274338,1220.6,1220.5,2.85968356]
[1672674908698,11.09274338,1220.6,1220.5,2.77730356]
[1672674914504,6.09274338,1220.6,1220.5,2.77730356]
[1672674915323,11.09274338,1220.6,1220.5,2.77730356]
[1672674924185,10.08685771,1220.6,1220.5,2.77730356]
[1672674924593,15.17340246,1220.6,1220.5,2.77730356]
[1672674924806,16.17960109,1220.6,1220.5,2.77730356]
[1672674926813,11.17960109,1220.6,1220.5,2.77730356]
[1672674927891,16.17960109,1220.6,1220.5,2.77730356]
[1672674931321,16.17960109,1220.6,1220.5,2.77345131]
[1672674933727,11.17960109,1220.6,1220.5,2.77345131]
[1672674934920,16.17960109,1220.6,1220.5,2.77345131]
[1672674935815,10.08685771,1220.6,1220.5,2.77345131]
[1672674936659,16.17960109,1220.6,1220.5,2.77345131]
[1672674941127,35.8279682,1220.6,1220.5,2.77345131]
[1672674941281,37.92791482,1220.6,1220.5,2.77345131]
[1672674941911,29.73522482,1220.6,1220.5,2.77345131]
[1672674942889,27.64655954,1220.6,1220.5,2.77345131]
[1672674943474,35.83924954,1220.6,1220.5,2.77345131]
[1672674946281,35.83591406,1220.6,1220.5,2.77345131]
[1672674951739,32.57292695,1220.6,1220.5,2.77345131]
[1672674952621,32.57292695,1220.6,1220.5,2.66148999]
[1672674954346,27.57292695,1220.6,1220.5,2.66148999]
[1672674955394,32.57292695,1220.6,1220.5,2.66148999]
[1672674961317,22.48940472,1220.6,1220.5,2.66148999]
[1672674962408,27.48940472,1220.6,1220.5,2.66148999]
[1672674962725,11.10402472,1220.6,1220.5,2.66148999]
[1672674964838,5.0,1220.6,1220.5,2.66148999]
[1672674965537,11.10402472,1220.6,1220.5,2.66148999]
[1672674974008,11.10402472,1220.6,1220.5,2.65894078]
[1672674975641,14.29671472,1220.6,1220.5,2.65894078]
[1672674976319,19.29671472,1220.6,1220.5,2.65894078]
[1672674980722,11.10402472,1220.6,1220.5,2.65894078]
[1672674982196,6.10402472,1220.6,1220.5,2.65894078]
[1672674983303,11.10402472,1220.6,1220.5,2.65894078]
[1672674984270,5.0,1220.6,1220.5,2.65894078]
[1672674984809,10.08574065,1220.6,1220.5,19.04566078]
[1672674984966,10.08574065,1220.6,1220.5,27.33802078]
[1672674985154,10.08574065,1220.6,1220.5,27.56802078]
[1672674986220,5.0,1220.6,1220.5,28.57702078]
[1672674986638,5.15174065,1220.7,1220.5,31.57702078]
[1672674986920,5.08574065,1220.7,1220.6,1.776]
[1672674987191,5.08574065,1220.7,1220.6,30.35407]
[1672674987528,5.15174065,1220.8,1220.6,30.45307]
[1672674987739,5.08574065,1220.8,1220.7,4.0]
[1672674987926,10.08574065,1220.8,1220.7,4.23]
[1672674988108,10.08574065,1220.8,1220.7,16.61404]
[1672674988332,10.08574065,1220.8,1220.7,16.71304]
[1672674988523,10.08574065,1220.8,1220.7,8.52102]
[1672674988833,10.08574065,1220.8,1220.7,0.329]
[1672674989113,10.08574065,1220.8,1220.7,0.23]
[1672674990701,10.08774065,1220.8,1220.7,0.23]
[1672674991002,10.08574065,1220.8,1220.7,0.23]
[1672674992302,10.08574065,1220.8,1220.7,9.96802]
[1672674992441,10.08574065,1220.8,1220.7,9.97102]
[1672674992641,10.08574065,1220.8,1220.7,10.06702]
[1672674993206,10.08574065,1220.8,1220.7,0.329]
[1672674993360,10.08574065,1220.8,1220.7,0.23]
[1672674995758,10.08574065,1220.8,1220.7,0.22737365]
[1672674996920,9.93574065,1220.8,1220.7,0.22737365]
[1672674997447,18.12708065,1220.8,1220.7,0.22737365]
[1672674999613,9.93256145,1220.8,1220.7,1.63137365]
[1672674999796,5.0,1220.8,1220.7,1.63137365]
[1672675002185,5.0,1220.8,1220.7,0.22737365]
[1672675003649,10.07405489,1220.8,1220.7,0.22737365]
[1672675005985,5.07405489,1220.8,1220.7,0.22737365]
[1672675006540,13.33076489,1220.9,1220.7,0.22737365]
[1672675006696,13.26476489,1220.9,1220.7,0.22737365]
[1672675006909,5.0,1220.8,1220.7,0.22737365]
[1672675007497,10.07405489,1220.8,1220.7,0.22737365]
[1672675008214,5.0,1220.8,1220.7,0.22737365]
[1672675008431,10.07405489,1220.8,1220.7,0.22737365]
[1672675010274,10.07405489,1220.8,1220.6,0.23]
[1672675010843,18.26561489,1220.8,1220.6,0.23]
[1672675011652,26.45717489,1220.8,1220.6,0.23]
[1672675011854,26.45695489,1220.8,1220.5,5.75794078]
[1672675012064,26.45695489,1220.8,1220.5,13.95122078]
[1672675012298,18.26539489,1220.8,1220.5,13.95122078]
[1672675013366,18.26539489,1220.8,1220.5,22.14458078]
[1672675015420,10.07405489,1220.8,1220.5,22.14458078]
[1672675015664,14.07405489,1220.8,1220.5,30.33794078]
[1672675015872,10.07405489,1220.8,1220.5,30.33794078]
[1672675016156,20.25955489,1220.8,1220.5,30.33794078]
[1672675016496,28.45100489,1220.8,1220.5,22.14458078]
[1672675017415,5.07405489,1220.7,1220.5,22.14458078]
[1672675018457,23.51700489,1220.8,1220.5,22.14458078]
[1672675018669,23.45100489,1220.8,1220.5,22.14458078]
[1672675019527,5.07405489,1220.7,1220.5,22.14458078]
[1672675021661,5.07405489,1220.7,1220.5,22.14176635]
[1672675023438,5.07405489,1220.7,1220.5,13.94840635]
[1672675023646,5.07405489,1220.6,1220.5,13.94840635]
[1672675023839,5.14005489,1220.7,1220.5,14.17840635]
[1672675024047,5.07405489,1220.6,1220.5,14.17840635]
[1672675024558,5.14005489,1220.7,1220.5,14.17840635]
[1672675024769,5.07405489,1220.6,1220.5,14.17840635]
[1672675025670,5.07405489,1220.6,1220.5,2.98512635]
[1672675025815,5.07405489,1220.6,1220.5,2.88612635]
[1672675027309,23.80305785,1220.6,1220.5,2.65612635]
[1672675027519,21.64033768,1220.6,1220.5,2.65612635]
[1672675027948,20.61894028,1220.6,1220.5,2.65612635]
[1672675028161,18.27531732,1220.6,1220.5,2.65612635]
[1672675028338,26.46800732,1220.6,1220.5,2.65612635]
[1672675028762,18.27531732,1220.6,1220.5,2.65612635]
[1672675029752,18.27510325,1220.6,1220.5,2.65612635]
[1672675036365,26.46779325,1220.6,1220.5,2.65612635]
[1672675036586,27.47779325,1220.6,1220.5,2.65612635]
[1672675040178,27.47779325,1220.6,1220.5,3.34164133]
[1672675041096,19.28510325,1220.6,1220.5,3.34164133]
[1672675041306,27.47779325,1220.6,1220.5,3.34164133]
[1672675043329,19.28510325,1220.6,1220.5,3.34164133]
[1672675044842,14.28510325,1220.6,1220.5,3.34164133]
[1672675045056,14.28510325,1220.6,1220.5,3.33803712]
[1672675045893,19.28510325,1220.6,1220.5,3.33803712]
[1672675047085,27.47779325,1220.6,1220.5,3.33803712]
[1672675047428,42.09534152,1220.6,1220.5,3.33803712]
[1672675054556,42.09734152,1220.6,1220.5,3.33803712]
[1672675054762,42.09534152,1220.6,1220.5,3.33803712]
[1672675054977,37.09534152,1220.6,1220.5,3.33803712]
[1672675055986,42.09534152,1220.6,1220.5,3.33803712]
[1672675057250,35.9913168,1220.6,1220.5,3.33803712]
[1672675059896,35.9913168,1220.6,1220.5,2.58803712]
[1672675061179,35.9913168,1220.6,1220.3,3.03957287]
[1672675061384,13.2747433,1220.4,1220.3,2.94057287]
[1672675062435,18.2747433,1220.4,1220.3,2.94057287]
[1672675062683,34.6628033,1220.4,1220.3,2.94057287]
[1672675062839,26.4687733,1220.4,1220.3,2.94057287]
[1672675063270,18.2747433,1220.4,1220.3,2.94057287]
[1672675065398,26.4687733,1220.4,1220.3,2.94057287]
[1672675067785,10.0807133,1220.4,1220.3,2.94057287]
[1672675068161,5.0,1220.4,1220.3,11.13527287]
[1672675068343,10.0807133,1220.4,1220.3,3.03957287]
[1672675068517,10.0807133,1220.4,1220.3,2.94057287]
[1672675068518,26.4687733,1220.4,1220.3,2.94057287]
[1672675069694,29.61942507,1220.4,1220.3,2.94057287]
[1672675069879,26.50572145,1220.4,1220.3,2.94057287]
[1672675071091,10.08032638,1220.4,1220.3,2.94057287]
[1672675074400,18.27435638,1220.4,1220.3,2.94057287]
[1672675075807,13.27435638,1220.4,1220.3,2.94057287]
[1672675076942,18.27435638,1220.4,1220.3,2.94057287]
[1672675079814,13.19403,1220.4,1220.3,2.94057287]
[1672675079966,18.27587695,1220.4,1220.3,2.94057287]
[1672675080700,13.19403,1220.4,1220.3,2.94057287]
[1672675081038,18.27594111,1220.4,1220.3,2.94057287]
[1672675082285,18.27594111,1220.4,1220.3,2.93838061]
[1672675085200,19.29088596,1220.4,1220.3,2.93838061]
[1672675085913,27.48491596,1220.4,1220.3,2.93838061]
[1672675087556,22.48491596,1220.4,1220.3,2.93838061]
[1672675088547,27.48491596,1220.4,1220.3,2.93838061]
[1672675094695,22.48491596,1220.4,1220.3,2.93838061]
[1672675095537,27.48491596,1220.4,1220.3,2.93838061]
[1672675101706,22.48491596,1220.4,1220.3,2.93838061]
[1672675102646,27.48491596,1220.4,1220.3,2.93838061]
[1672675102957,40.35937856,1220.4,1220.3,2.93838061]
[1672675103212,39.41838374,1220.4,1220.3,2.93838061]
[1672675103383,44.53503378,1220.4,1220.3,2.93838061]
[1672675103530,44.53503378,1220.4,1220.3,2.93571979]
[1672675104288,4.0,1220.3,1220.1,2.89149223]
[1672675104511,27.49168201,1220.2,1220.1,2.79249223]
[1672675105847,21.39074,1220.2,1220.1,2.79249223]
[1672675106057,29.58611,1220.2,1220.1,2.79249223]
[1672675106494,21.39074,1220.2,1220.1,2.79249223]
[1672675106706,29.58611,1220.2,1220.1,2.79249223]
[1672675108319,34.66754526,1220.2,1220.1,2.79249223]
[1672675109218,42.52521757,1220.2,1220.1,2.79249223]
[1672675111102,51.79072875,1220.2,1220.1,2.79249223]
[1672675111333,46.69978674,1220.2,1220.1,2.79249223]
[1672675111579,47.67933571,1220.2,1220.1,2.79249223]
[1672675116192,41.5831367,1220.2,1220.1,2.79249223]
[1672675116542,47.67933571,1220.2,1220.1,2.79249223]
[1672675116857,46.67933571,1220.2,1220.1,2.79249223]
[1672675118823,40.5831367,1220.2,1220.1,2.79249223]
[1672675119594,40.57935736,1220.2,1220.1,2.79249223]
[1672675120223,46.67555637,1220.2,1220.1,2.79249223]
[1672675124876,15.22949814,1220.2,1220.1,2.79249223]
[1672675125154,18.26578075,1220.2,1220.1,2.79249223]
[1672675125317,34.65652075,1220.2,1220.1,2.79249223]
[1672675126668,34.65708978,1220.2,1220.1,2.79249223]
[1672675126878,38.80595092,1220.2,1220.1,2.79249223]
[1672675127166,45.3062658,1220.2,1220.1,2.79249223]
[1672675128898,46.3162658,1220.2,1220.1,2.79249223]
[1672675129317,40.22006679,1220.2,1220.1,2.79249223]
[1672675130111,46.3162658,1220.2,1220.1,2.79249223]
[1672675133342,40.22006679,1220.2,1220.1,2.79249223]
[1672675133554,46.31164832,1220.2,1220.1,2.79249223]
[1672675135412,14.22164992,1220.2,1220.1,2.79249223]
[1672675135627,10.07278878,1220.2,1220.1,2.79249223]
[1672675135818,4.99622066,1220.2,1220.1,19.18457223]
[1672675136029,9.2933726,1220.2,1220.1,19.28357223]
[1672675136614,9.29406998,1220.2,1220.1,19.28357223]
[1672675136989,9.29406998,1220.2,1220.1,2.89149223]
[1672675137208,9.29406998,1220.2,1220.1,2.79249223]
[1672675137422,4.99622066,1220.2,1220.1,2.79249223]
[1672675137853,10.07278878,1220.2,1220.1,2.79249223]
[1672675139072,18.26815878,1220.2,1220.1,2.79249223]
[1672675139727,18.26815878,1220.2,1220.1,2.78850678]
[1672675140554,13.19159066,1220.2,1220.1,2.78850678]
[1672675140966,18.27187875,1220.2,1220.1,2.78850678]
[1672675142245,13.19159066,1220.2,1220.1,2.78850678]
[1672675142446,19.28317219,1220.2,1220.1,2.78850678]
[1672675143319,13.19159066,1220.2,1220.1,2.78850678]
[1672675143524,21.38696066,1220.2,1220.1,2.78850678]
[1672675143706,35.67391219,1220.2,1220.1,2.78850678]
[1672675144594,28.93541366,1220.2,1220.1,2.78850678]
[1672675144824,37.13078366,1220.2,1220.1,2.78850678]
[1672675145827,28.93541366,1220.2,1220.1,2.78850678]
[1672675146816,37.13078366,1220.2,1220.1,2.78850678]
[1672675147338,28.93541366,1220.2,1220.1,2.78850678]
[1672675147494,37.13078366,1220.2,1220.1,2.78850678]
[1672675148346,28.93541366,1220.2,1220.1,2.78850678]
[1672675148742,37.13078366,1220.2,1220.1,2.78850678]
[1672675149484,28.93541366,1220.2,1220.1,2.78850678]
[1672675149689,10.079334,1220.2,1220.1,2.78850678]
[1672675150711,10.079334,1220.2,1220.1,10.98454678]
[1672675150853,10.079334,1220.2,1220.1,11.08354678]
[1672675151065,10.079334,1220.2,1220.1,2.88750678]
[1672675151444,10.079334,1220.2,1220.1,2.78850678]
[1672675156585,18.274704,1220.2,1220.1,2.78850678]
[1672675157529,21.38696066,1220.2,1220.1,2.78850678]
[1672675157745,29.58233066,1220.2,1220.1,2.78850678]
[1672675158474,26.46823898,1220.2,1220.1,2.78850678]
[1672675159089,21.38696066,1220.2,1220.1,2.78850678]
[1672675159420,29.58233066,1220.2,1220.1,2.78850678]
[1672675159942,34.66382664,1220.2,1220.1,2.78850678]
[1672675160094,29.58233066,1220.2,1220.1,2.78850678]
[1672675160308,21.38696066,1220.2,1220.1,2.78850678]
[1672675164482,21.38696066,1220.2,1220.1,2.78557934]
[1672675164653,16.39074,1220.2,1220.1,2.78557934]
[1672675165492,22.48232153,1220.2,1220.1,2.78557934]
[1672675165708,27.48232153,1220.2,1220.1,2.78557934]
[1672675167839,21.39074,1220.2,1220.1,2.78557934]
[1672675168421,35.67769153,1220.2,1220.1,2.78557934]
[1672675169319,27.48232153,1220.2,1220.1,2.78557934]
[1672675169508,35.67769153,1220.2,1220.1,2.78557934]
[1672675170154,27.48232153,1220.2,1220.1,2.78557934]
[1672675171171,35.67769153,1220.2,1220.1,2.78557934]
[1672675171345,21.39074,1220.2,1220.1,2.78557934]
[1672675171661,26.47456382,1220.2,1220.1,2.78557934]
[1672675171815,21.39074,1220.2,1220.1,2.78557934]
[1672675172028,29.58611,1220.2,1220.1,2.78557934]
[1672675172259,35.67769153,1220.2,1220.1,2.78557934]
[1672675174070,27.48232153,1220.2,1220.1,2.78557934]
[1672675174644,31.87616668,1220.2,1220.1,2.78557934]
[1672675175315,40.07153668,1220.2,1220.1,2.78557934]
[1672675175646,31.87616668,1220.2,1220.1,2.78557934]
[1672675176012,40.07153668,1220.2,1220.1,2.78557934]
[1672675176697,31.87616668,1220.2,1220.1,2.78557934]
[1672675177083,40.07153668,1220.2,1220.1,2.78557934]
[1672675177275,31.87616668,1220.2,1220.1,2.78557934]
[1672675177489,40.07153668,1220.2,1220.1,2.78557934]
[1672675179283,44.22039782,1220.2,1220.1,2.78557934]
[1672675180673,44.2181617,1220.2,1220.1,2.78557934]
[1672675182035,38.12658017,1220.2,1220.1,2.78557934]
[1672675183320,13.19313388,1220.2,1220.1,2.78557934]
[1672675183636,10.08550272,1220.2,1220.1,28.38369934]
[1672675183801,10.08550272,1220.2,1220.1,28.48269934]
[1672675183994,5.0,1220.2,1220.1,33.59934938]
[1672675184364,9.25487164,1220.2,1220.1,28.48269934]
[1672675184940,4.37087164,1220.3,1220.1,28.48269934]
[1672675185149,4.30487164,1220.3,1220.2,5.009]
[1672675185404,9.30487164,1220.3,1220.2,29.69411]
[1672675186169,4.30487164,1220.3,1220.2,31.79654299]
[1672675187586,4.37087164,1220.4,1220.2,32.80254299]
[1672675187794,4.30487164,1220.4,1220.3,25.5931]
[1672675188040,4.30487164,1220.4,1220.3,25.6921]
[1672675189037,0.066,1220.5,1220.3,25.6921]
[1672675189038,4.37087164,1220.5,1220.3,25.6921]
[1672675189303,4.30487164,1220.5,1220.3,25.6921]
[1672675192110,4.30487164,1220.5,1220.4,5.01]
[1672675192327,9.30487164,1220.5,1220.4,25.69109]
[1672675192807,9.30487164,1220.5,1220.4,17.49706]
[1672675193475,9.30487164,1220.5,1220.4,25.69109]
[1672675193778,9.30487164,1220.5,1220.4,9.30303]
[1672675194635,9.30487164,1220.5,1220.4,17.49706]
[1672675195055,4.30487164,1220.5,1220.4,17.49706]
[1672675196002,9.30487164,1220.5,1220.4,17.49706]
[1672675196653,9.30487164,1220.5,1220.4,16.48706]
[1672675197161,5.0,1220.5,1220.4,8.29303]
[1672675197415,9.30487164,1220.5,1220.4,0.099]
[1672675197746,9.30487164,1220.5,1220.3,0.099]
[1672675198050,9.30487164,1220.5,1220.2,22.84391681]
[1672675198210,9.30487164,1220.5,1220.2,31.03928681]
[1672675198628,9.30487164,1220.5,1220.2,22.84391681]
[1672675198896,17.49829164,1220.5,1220.2,22.84391681]
[1672675200374,17.48232401,1220.5,1220.2,14.64882681]
[1672675201588,17.48232401,1220.5,1220.2,10.64882681]
[1672675201853,17.48232401,1220.5,1220.2,14.64882681]
[1672675205006,17.48232401,1220.5,1220.2,10.64882681]
[1672675205161,17.48232401,1220.5,1220.2,14.64675387]
[1672675205827,17.48232401,1220.5,1220.2,14.39437005]
[1672675206523,17.48232401,1220.5,1220.2,22.58974005]
[1672675206734,9.28890401,1220.5,1220.2,22.58974005]
[1672675207325,9.28890401,1220.5,1220.2,35.90176009]
[1672675207511,9.28890401,1220.5,1220.2,30.78511005]
[1672675207859,5.0,1220.5,1220.4,24.58209]
[1672675208020,5.0,1220.5,1220.4,35.18660118]
[1672675208226,5.0,1220.5,1220.4,32.31233496]
[1672675208416,0.066,1220.6,1220.4,32.31233496]
[1672675208627,4.28890401,1220.7,1220.5,18.01992]
[1672675208833,0.066,1220.8,1220.6,20.53424114]
[1672675209097,4.28890401,1220.8,1220.7,9.82602]
[1672675209305,4.28890401,1220.8,1220.7,9.92502]
[1672675211407,4.28890401,1220.8,1220.7,0.329]
[1672675211620,4.28890401,1220.8,1220.7,0.23]
[1672675212042,4.28890401,1220.8,1220.7,8.42202]
[1672675212231,4.28890401,1220.8,1220.7,8.52102]
[1672675212867,4.29090401,1220.8,1220.7,16.71004]
[1672675213081,5.35490401,1220.9,1220.7,24.90506]
[1672675213338,5.28890401,1220.9,1220.7,24.90506]
[1672675215924,4.28890401,1220.8,1220.7,24.90506]
[1672675216133,5.35490401,1220.9,1220.7,24.90506]
[1672675216344,5.28890401,1220.9,1220.7,24.90506]
[1672675217637,4.28890401,1220.8,1220.7,24.90506]
[1672675217970,5.35490401,1220.9,1220.7,24.90506]
[1672675218123,5.28890401,1220.9,1220.7,24.90506]
[1672675218675,4.28890401,1220.8,1220.7,8.52102]
[1672675219741,4.28890401,1220.8,1220.7,0.329]
[1672675219887,4.28890401,1220.8,1220.7,0.23]
[1672675220098,4.28890401,1220.8,1220.7,8.42202]
[1672675220364,4.28890401,1220.8,1220.7,8.52102]
[1672675222365,4.28890401,1220.8,1220.7,0.329]
[1672675222555,4.28890401,1220.8,1220.7,0.23]
[1672675222791,4.28890401,1220.8,1220.7,8.42202]
[1672675223099,4.28890401,1220.8,1220.7,8.52102]
[1672675223620,4.29178587,1220.8,1220.7,16.71304]
[1672675224983,4.29178587,1220.8,1220.7,0.099]
[1672675225189,4.29178587,1220.8,1220.6,8.29121]
[1672675225403,4.29178587,1220.8,1220.6,16.4839]
[1672675225767,4.29178587,1220.8,1220.6,16.48177743]
[1672675226821,4.29178587,1220.8,1220.6,24.67446743]
[1672675228136,4.35778587,1220.9,1220.8,16.38268]
[1672675228351,4.29178587,1220.9,1220.8,8.29034]
[1672675228776,4.29178587,1220.9,1220.8,16.48168]
[1672675229339,4.29178587,1220.9,1220.8,16.71168]
[1672675230817,4.29178587,1220.9,1220.8,24.90302]
[1672675234435,4.29178587,1220.9,1220.8,1.733]
[1672675234660,4.29178587,1220.9,1220.8,26.20802]
[1672675234808,4.29178587,1220.9,1220.8,26.30702]
[1672675239593,4.29178587,1220.9,1220.8,0.329]
[1672675239762,4.29178587,1220.9,1220.8,8.19134]
[1672675239975,4.29178587,1220.9,1220.8,8.29034]
[1672675240380,4.29178587,1220.9,1220.8,12.43920114]
[1672675240593,5.13226787,1221.0,1220.8,21.89092496]
[1672675240594,0.066,1221.0,1220.8,21.89092496]
[1672675240814,4.35778587,1221.2,1220.9,28.14540114]
[1672675241028,4.29178587,1221.2,1220.9,46.43507114]
[1672675241609,4.29178587,1221.2,1221.1,8.18933]
[1672675241809,4.29178587,1221.2,1221.1,8.28833]
[1672675242329,4.29178587,1221.2,1221.1,16.47766]
[1672675243569,4.29178587,1221.2,1221.1,24.66699]
[1672675244375,4.29178587,1221.2,1221.1,16.47766]
[1672675244618,5.06626787,1221.2,1221.1,8.28833]
[1672675244833,4.29119806,1221.2,1221.1,8.28833]
[1672675245054,10.14226787,1221.3,1221.1,8.28833]
[1672675245279,10.07626787,1221.3,1221.1,8.28833]
[1672675245427,4.28936212,1221.2,1221.1,8.28833]
[1672675246304,9.35562999,1221.2,1221.1,8.28833]
[1672675246499,5.06626787,1221.2,1221.1,8.28833]
[1672675246721,4.29208423,1221.2,1221.1,8.28492784]
[1672675246939,5.13226787,1221.3,1221.1,8.28492784]
[1672675247126,4.29212143,1221.2,1221.1,8.28492784]
[1672675247340,4.29036897,1221.2,1221.1,8.28492784]
[1672675251012,9.13226787,1221.3,1221.1,8.28492784]
[1672675251262,33.62118144,1221.4,1221.1,8.28492784]
[1672675251263,5.06626787,1221.2,1221.1,8.28492784]
[1672675252065,4.28953534,1221.2,1221.1,8.28492784]
[1672675252733,5.06626787,1221.2,1221.1,0.099]
[1672675252943,23.78918109,1221.2,1221.0,0.099]
[1672675253133,4.29004502,1221.1,1220.9,26.73212382]
[1672675253694,4.29004502,1221.1,1220.9,34.92254382]
[1672675256584,5.30004502,1221.1,1220.9,34.92254382]
[1672675257163,8.41199163,1221.1,1220.9,34.92254382]
[1672675257380,5.29604502,1221.0,1220.9,0.099]
[1672675257616,5.29604502,1221.0,1220.8,8.29352748]
[1672675257617,1.006,1221.0,1220.8,8.29352748]
[1672675257765,5.29598041,1221.0,1220.8,16.48465748]
[1672675258324,5.29598041,1221.0,1220.8,8.29352748]
[1672675258534,5.29598041,1221.0,1220.8,0.10281748]
[1672675258535,13.48599041,1221.0,1220.8,0.10281748]
[1672675258687,4.0,1220.9,1220.8,0.00381748]
[1672675258898,4.0,1220.9,1220.8,8.19515748]
[1672675259107,4.28998041,1220.9,1220.8,8.29415748]
[1672675259523,4.28998041,1220.9,1220.8,0.10281748]
[1672675259734,4.28998041,1220.9,1220.8,0.23381748]
[1672675260090,4.28998041,1220.9,1220.8,8.42515748]
[1672675260315,4.28998041,1220.9,1220.8,8.52415748]
[1672675260470,4.28998041,1220.9,1220.8,0.329]
[1672675260680,4.28998041,1220.9,1220.8,0.23]
[1672675261855,4.28998041,1220.9,1220.8,8.42134]
[1672675262230,5.31890643,1220.9,1220.8,0.099]
[1672675262540,1.02892602,1220.9,1220.7,8.29056]
[1672675262711,4.29299023,1220.8,1220.7,8.29056]
[1672675262936,4.29299023,1220.8,1220.7,8.52056]
[1672675263745,3.3031266,1220.8,1220.7,8.52056]
[1672675264514,10.13368077,1220.9,1220.7,16.71258]
[1672675264515,5.066,1220.9,1220.7,16.71258]
[1672675264688,1.0,1220.9,1220.7,16.71258]
[1672675264900,17.05798077,1221.0,1220.7,24.9046]
[1672675265158,16.99198077,1221.0,1220.7,24.9046]
[1672675266956,25.18208077,1221.0,1220.7,16.71258]
[1672675267952,1.006,1220.8,1220.7,0.099]
[1672675268290,1.006,1220.8,1220.5,0.099]
[1672675268291,23.46636077,1220.8,1220.5,0.099]
[1672675268639,5.13368077,1220.9,1220.7,24.57606]
[1672675268803,5.0,1220.8,1220.7,24.92744382]
[1672675269163,4.35958525,1220.9,1220.7,24.92744382]
[1672675269482,4.35958525,1221.0,1220.7,24.92744382]
[1672675269632,4.29358525,1221.0,1220.8,11.19134]
[1672675269839,4.29358525,1221.0,1220.8,27.67302]
[1672675270046,4.29358525,1220.9,1220.8,27.92540382]
[1672675270322,4.29358525,1220.9,1220.8,28.15540382]
[1672675270748,4.35958525,1221.0,1220.8,28.15540382]
[1672675270889,4.29358525,1220.9,1220.8,28.15540382]
[1672675271731,4.35958525,1221.0,1220.8,28.15540382]
[1672675271967,4.29358525,1221.0,1220.8,28.15540382]
[1672675274118,4.29358525,1220.9,1220.8,28.15540382]
[1672675274752,4.29358525,1220.9,1220.8,27.90302]
[1672675274964,4.35958525,1221.0,1220.8,32.05188114]
[1672675275277,4.29358525,1221.0,1220.9,4.23381717]
[1672675275596,4.29358525,1221.0,1220.9,16.61515717]
[1672675275914,4.29358525,1221.0,1220.9,16.71415717]
[1672675276477,4.29358525,1221.0,1220.9,0.099]
[1672675276478,5.06768077,1221.0,1220.9,0.099]
[1672675276689,22.45768077,1221.0,1220.8,3.0]
[1672675276950,4.29498866,1220.9,1220.8,3.0]
[1672675277172,4.29498866,1220.9,1220.8,3.23]
[1672675278380,4.29528537,1220.9,1220.8,3.23]
[1672675279746,4.29539062,1220.9,1220.8,3.23]
[1672675280220,14.33368077,1221.0,1220.8,3.23]
[1672675280430,14.26768077,1221.0,1220.8,3.23]
[1672675281974,5.06768077,1220.9,1220.8,3.23]
[1672675282898,4.29593514,1220.9,1220.8,3.23]
[1672675283634,4.29618969,1220.9,1220.8,3.23]
[1672675283847,4.29618969,1220.9,1220.8,0.23]
[1672675284058,14.33368077,1221.0,1220.8,0.23]
[1672675284269,5.06768077,1220.9,1220.8,0.23]
[1672675284980,14.33368077,1221.0,1220.8,0.23]
[1672675285200,14.26768077,1221.0,1220.8,0.23]
[1672675285408,10.06768077,1220.9,1220.8,0.23]
[1672675285944,5.0,1220.9,1220.8,0.23]
[1672675286927,5.0,1220.9,1220.8,8.41752718]
[1672675287142,5.0,1220.9,1220.8,8.51652718]
[1672675287406,10.06768077,1220.9,1220.8,8.51652718]
[1672675293292,5.06768077,1220.9,1220.8,8.51652718]
[1672675294183,10.06768077,1220.9,1220.8,8.51652718]
[1672675297185,10.06768077,1220.9,1220.8,24.89920718]
[1672675297503,10.06768077,1220.9,1220.8,18.19406917]
[1672675297651,10.06768077,1220.9,1220.8,10.00272917]
[1672675297862,10.06768077,1220.9,1220.8,1.81138917]
[1672675298124,10.06768077,1220.9,1220.8,1.71238917]
[1672675299595,10.06768077,1220.9,1220.8,9.90372917]
[1672675299761,10.06768077,1220.9,1220.8,10.00272917]
[1672675300174,5.06768077,1220.9,1220.8,10.00272917]
[1672675300385,5.06768077,1220.9,1220.8,18.19406917]
[1672675301280,10.06768077,1220.9,1220.8,18.19406917]
[1672675305828,10.06768077,1220.9,1220.8,26.38540917]
[1672675306786,9.30314367,1220.9,1220.8,30.78665413]
[1672675306958,4.30314367,1220.9,1220.8,30.78665413]
[1672675307789,4.30314367,1220.9,1220.8,33.78443063]
[1672675318848,4.30314367,1220.9,1220.8,33.53204681]
[1672675322983,5.13368077,1221.0,1220.8,17.14936681]
[1672675323194,5.13368077,1221.0,1220.8,33.53204681]
[1672675323195,5.06768077,1221.0,1220.8,33.53204681]